{"text_format":"3","workbook":"xlsx","n_sheets":3,"sheets":["Aylık Bütçe Raporu","Aylık Giderler","Ek Veri"],"not_rendered":{"charts":1,"external_links":1,"defined_names":4,"pivot_tables":2},"read":"whole","date_system":"1900"}

{"sheet":"Aylık Bütçe Raporu","index":0,"n_rows":34,"n_cols":14,"rows_kept":34,"merged":[[7,1,10,1],[7,5,10,5],[7,6,10,6],[12,1,16,1],[12,5,16,5],[12,6,16,6]]}
[null,"Bütçeye Genel Bakış",{"$nulls":7},"Bütçe Özeti"]
[null,"Bakiye"]
[null,"Tahmini Bakiye","(Tahmini en düşük giderler)",{"$nulls":3},{"$f":"D17-SUM(BütçeAyrıntıları[Tahmini Maliyet])","v":{"v":1585,"d":"1,585 ₺"}}]
[null,"Fiili Bakiye ","(Fiili ve giderler farkı)",{"$nulls":3},{"$f":"D11-SUM(BütçeAyrıntıları[Fiili Maliyet])","v":{"v":1740,"d":"1,740 ₺"}}]
[null,"Fark","(Fiili ve tahmini farkı)",{"$nulls":3},{"$f":"G4-G3","v":{"v":155,"d":"155 ₺"}}]
[]
[null,"Gelir",{"$nulls":3},"Giderler",{"$nulls":3},"Aşağıdaki PivotTable’a sağ tıklayın ve güncelleştirmek için Yenile'ye tıklayın"]
[null,"FİİLİ","Gelir 1",{"v":5800,"d":"5,800 ₺"},null,"FİİLİ",{"$f":"SUM(BütçeAyrıntıları[Fiili Maliyet])","v":{"v":7860,"d":"7,860 ₺"}}]
[null,null,"Gelir 2",{"v":2300,"d":"2,300 ₺"},{"$nulls":6},"Kategori","Tahmini Maliyet ","Fiili Maliyet ","Fark "]
[null,null,"Ek gelir",{"v":1500,"d":"1,500 ₺"},{"$nulls":6},"Barınma",{"v":2830,"d":"2,830.00 ₺"},{"v":2702,"d":"2,702 ₺"},{"v":128,"d":"128 ₺"}]
[null,null,"Toplam gelir",{"$f":"SUM(D8:D10)","v":{"v":9600,"d":"9,600 ₺"}}]
[{"$nulls":10},"Birikimler veya Yatırımlar",{"v":200,"d":"200.00 ₺"},{"v":200,"d":"200 ₺"},{"v":0,"d":"0 ₺"}]
[null,"TAHMİNİ",{"$nulls":3},"TAHMİNİ",{"$f":"SUM(BütçeAyrıntıları[Tahmini Maliyet])","v":{"v":7915,"d":"7,915 ₺"}}]
[null,null,"Gelir 1",{"v":6000,"d":"6,000 ₺"},{"$nulls":6},"Çocuklar",{"v":140,"d":"140.00 ₺"},{"v":140,"d":"140 ₺"},{"v":0,"d":"0 ₺"}]
[null,null,"Gelir 2",{"v":1000,"d":"1,000 ₺"}]
[null,null,"Ek gelir",{"v":2500,"d":"2,500 ₺"},{"$nulls":6},"Eğlence",{"v":400,"d":"400.00 ₺"},{"v":358,"d":"358 ₺"},{"v":42,"d":"42 ₺"}]
[null,null,"Toplam gelir",{"$f":"SUM(D14:D16)","v":{"v":9500,"d":"9,500 ₺"}}]
[{"$nulls":10},"Evcil Hayvanlar",{"v":170,"d":"170.00 ₺"},{"v":100,"d":"100 ₺"},{"v":70,"d":"70 ₺"}]
[]
[{"$nulls":10},"Hediyeler ve Bağışlar",{"v":100,"d":"100.00 ₺"},{"v":125,"d":"125 ₺"},{"v":-25,"d":"-25 ₺"}]
[]
[{"$nulls":10},"Kişisel Bakım",{"v":150,"d":"150.00 ₺"},{"v":140,"d":"140 ₺"},{"v":10,"d":"10 ₺"}]
[]
[{"$nulls":10},"Krediler",{"v":200,"d":"200.00 ₺"},{"v":200,"d":"200 ₺"},{"v":0,"d":"0 ₺"}]
[]
[{"$nulls":10},"Sigorta",{"v":900,"d":"900.00 ₺"},{"v":900,"d":"900 ₺"},{"v":0,"d":"0 ₺"}]
[]
[{"$nulls":10},"Ulaşım",{"v":1425,"d":"1,425.00 ₺"},{"v":1375,"d":"1,375 ₺"},{"v":50,"d":"50 ₺"}]
[]
[{"$nulls":10},"Vergiler",{"v":300,"d":"300.00 ₺"},{"v":300,"d":"300 ₺"},{"v":0,"d":"0 ₺"}]
[]
[{"$nulls":10},"Yiyecek",{"v":1100,"d":"1,100.00 ₺"},{"v":1320,"d":"1,320 ₺"},{"v":-220,"d":"-220 ₺"}]
[]
[{"$nulls":10},"Genel Toplam",{"v":7915,"d":"7,915.00 ₺"},{"v":7860,"d":"7,860 ₺"},{"v":55,"d":"55 ₺"}]

{"sheet":"Aylık Giderler","index":1,"n_rows":62,"n_cols":7,"rows_kept":62}
[null,"Aylık Giderler"]
[null,"Açıklama","Kategori","Tahmini Maliyet","Fiili Maliyet","Fark","Fiili Maliyete Genel Bakış"]
[null,"Ders dışı etkinlikler","Çocuklar",{"v":40,"d":"40 ₺"},{"v":40,"d":"40 ₺"},{"$f":"BütçeAyrıntıları[[#This Row],[Tahmini Maliyet]]-BütçeAyrıntıları[[#This Row],[Fiili Maliyet]]","v":{"v":0,"d":"0 ₺"}},{"$f":"BütçeAyrıntıları[[#This Row],[Fiili Maliyet]]","v":{"v":40,"d":"40 ₺"}}]
[null,"Medikal","Çocuklar",null,null,{"$f":"BütçeAyrıntıları[[#This Row],[Tahmini Maliyet]]-BütçeAyrıntıları[[#This Row],[Fiili Maliyet]]","v":{"v":0,"d":"0 ₺"}},{"$f":"BütçeAyrıntıları[[#This Row],[Fiili Maliyet]]","v":{"v":0,"d":"0 ₺"}}]
[null,"Okul Malzemeleri","Çocuklar",null,null,{"$f":"BütçeAyrıntıları[[#This Row],[Tahmini Maliyet]]-BütçeAyrıntıları[[#This Row],[Fiili Maliyet]]","v":{"v":0,"d":"0 ₺"}},{"$f":"BütçeAyrıntıları[[#This Row],[Fiili Maliyet]]","v":{"v":0,"d":"0 ₺"}}]
[null,"Okul Ücreti","Çocuklar",{"v":100,"d":"100 ₺"},{"v":100,"d":"100 ₺"},{"$f":"BütçeAyrıntıları[[#This Row],[Tahmini Maliyet]]-BütçeAyrıntıları[[#This Row],[Fiili Maliyet]]","v":{"v":0,"d":"0 ₺"}},{"$f":"BütçeAyrıntıları[[#This Row],[Fiili Maliyet]]","v":{"v":100,"d":"100 ₺"}}]
[null,"Konserler","Eğlence",{"v":50,"d":"50 ₺"},{"v":40,"d":"40 ₺"},{"$f":"BütçeAyrıntıları[[#This Row],[Tahmini Maliyet]]-BütçeAyrıntıları[[#This Row],[Fiili Maliyet]]","v":{"v":10,"d":"10 ₺"}},{"$f":"BütçeAyrıntıları[[#This Row],[Fiili Maliyet]]","v":{"v":40,"d":"40 ₺"}}]
[null,"Tiyatro","Eğlence",{"v":200,"d":"200 ₺"},{"v":150,"d":"150 ₺"},{"$f":"BütçeAyrıntıları[[#This Row],[Tahmini Maliyet]]-BütçeAyrıntıları[[#This Row],[Fiili Maliyet]]","v":{"v":50,"d":"50 ₺"}},{"$f":"BütçeAyrıntıları[[#This Row],[Fiili Maliyet]]","v":{"v":150,"d":"150 ₺"}}]
[null,"Film","Eğlence",{"v":50,"d":"50 ₺"},{"v":28,"d":"28 ₺"},{"$f":"BütçeAyrıntıları[[#This Row],[Tahmini Maliyet]]-BütçeAyrıntıları[[#This Row],[Fiili Maliyet]]","v":{"v":22,"d":"22 ₺"}},{"$f":"BütçeAyrıntıları[[#This Row],[Fiili Maliyet]]","v":{"v":28,"d":"28 ₺"}}]
[null,"Müzik (CD’ler, indirilenler vb.)","Eğlence",{"v":50,"d":"50 ₺"},{"v":30,"d":"30 ₺"},{"$f":"BütçeAyrıntıları[[#This Row],[Tahmini Maliyet]]-BütçeAyrıntıları[[#This Row],[Fiili Maliyet]]","v":{"v":20,"d":"20 ₺"}},{"$f":"BütçeAyrıntıları[[#This Row],[Fiili Maliyet]]","v":{"v":30,"d":"30 ₺"}}]
[null,"Spor Etkinlikleri","Eğlence",{"v":0,"d":"0 ₺"},{"v":40,"d":"40 ₺"},{"$f":"BütçeAyrıntıları[[#This Row],[Tahmini Maliyet]]-BütçeAyrıntıları[[#This Row],[Fiili Maliyet]]","v":{"v":-40,"d":"-40 ₺"}},{"$f":"BütçeAyrıntıları[[#This Row],[Fiili Maliyet]]","v":{"v":40,"d":"40 ₺"}}]
[null,"Video/DVD (Satın alınan)","Eğlence",{"v":20,"d":"20 ₺"},{"v":50,"d":"50 ₺"},{"$f":"BütçeAyrıntıları[[#This Row],[Tahmini Maliyet]]-BütçeAyrıntıları[[#This Row],[Fiili Maliyet]]","v":{"v":-30,"d":"-30 ₺"}},{"$f":"BütçeAyrıntıları[[#This Row],[Fiili Maliyet]]","v":{"v":50,"d":"50 ₺"}}]
[null,"Video/DVD (kiralanan)","Eğlence",{"v":30,"d":"30 ₺"},{"v":20,"d":"20 ₺"},{"$f":"BütçeAyrıntıları[[#This Row],[Tahmini Maliyet]]-BütçeAyrıntıları[[#This Row],[Fiili Maliyet]]","v":{"v":10,"d":"10 ₺"}},{"$f":"BütçeAyrıntıları[[#This Row],[Fiili Maliyet]]","v":{"v":20,"d":"20 ₺"}}]
[null,"Dışarıda Yemek","Yiyecek",{"v":1000,"d":"1,000 ₺"},{"v":1200,"d":"1,200 ₺"},{"$f":"BütçeAyrıntıları[[#This Row],[Tahmini Maliyet]]-BütçeAyrıntıları[[#This Row],[Fiili Maliyet]]","v":{"v":-200,"d":"-200 ₺"}},{"$f":"BütçeAyrıntıları[[#This Row],[Fiili Maliyet]]","v":{"v":1200,"d":"1,200 ₺"}}]
[null,"Market","Yiyecek",{"v":100,"d":"100 ₺"},{"v":120,"d":"120 ₺"},{"$f":"BütçeAyrıntıları[[#This Row],[Tahmini Maliyet]]-BütçeAyrıntıları[[#This Row],[Fiili Maliyet]]","v":{"v":-20,"d":"-20 ₺"}},{"$f":"BütçeAyrıntıları[[#This Row],[Fiili Maliyet]]","v":{"v":120,"d":"120 ₺"}}]
[null,"Hayır kurumu 1","Hediyeler ve Bağışlar",{"v":75,"d":"75 ₺"},{"v":100,"d":"100 ₺"},{"$f":"BütçeAyrıntıları[[#This Row],[Tahmini Maliyet]]-BütçeAyrıntıları[[#This Row],[Fiili Maliyet]]","v":{"v":-25,"d":"-25 ₺"}},{"$f":"BütçeAyrıntıları[[#This Row],[Fiili Maliyet]]","v":{"v":100,"d":"100 ₺"}}]
[null,"Hayır kurumu 2","Hediyeler ve Bağışlar",{"v":25,"d":"25 ₺"},{"v":25,"d":"25 ₺"},{"$f":"BütçeAyrıntıları[[#This Row],[Tahmini Maliyet]]-BütçeAyrıntıları[[#This Row],[Fiili Maliyet]]","v":{"v":0,"d":"0 ₺"}},{"$f":"BütçeAyrıntıları[[#This Row],[Fiili Maliyet]]","v":{"v":25,"d":"25 ₺"}}]
[null,"Hediye 1","Hediyeler ve Bağışlar",null,null,{"$f":"BütçeAyrıntıları[[#This Row],[Tahmini Maliyet]]-BütçeAyrıntıları[[#This Row],[Fiili Maliyet]]","v":{"v":0,"d":"0 ₺"}},{"$f":"BütçeAyrıntıları[[#This Row],[Fiili Maliyet]]","v":{"v":0,"d":"0 ₺"}}]
[null,"Hediye 2","Hediyeler ve Bağışlar",null,null,{"$f":"BütçeAyrıntıları[[#This Row],[Tahmini Maliyet]]-BütçeAyrıntıları[[#This Row],[Fiili Maliyet]]","v":{"v":0,"d":"0 ₺"}},{"$f":"BütçeAyrıntıları[[#This Row],[Fiili Maliyet]]","v":{"v":0,"d":"0 ₺"}}]
[null,"Kablolu TV/Uydu","Barınma",{"v":100,"d":"100 ₺"},{"v":100,"d":"100 ₺"},{"$f":"BütçeAyrıntıları[[#This Row],[Tahmini Maliyet]]-BütçeAyrıntıları[[#This Row],[Fiili Maliyet]]","v":{"v":0,"d":"0 ₺"}},{"$f":"BütçeAyrıntıları[[#This Row],[Fiili Maliyet]]","v":{"v":100,"d":"100 ₺"}}]
[null,"Elektrik","Barınma",{"v":45,"d":"45 ₺"},{"v":50,"d":"50 ₺"},{"$f":"BütçeAyrıntıları[[#This Row],[Tahmini Maliyet]]-BütçeAyrıntıları[[#This Row],[Fiili Maliyet]]","v":{"v":-5,"d":"-5 ₺"}},{"$f":"BütçeAyrıntıları[[#This Row],[Fiili Maliyet]]","v":{"v":50,"d":"50 ₺"}}]
[null,"Isınma","Barınma",{"v":300,"d":"300 ₺"},{"v":400,"d":"400 ₺"},{"$f":"BütçeAyrıntıları[[#This Row],[Tahmini Maliyet]]-BütçeAyrıntıları[[#This Row],[Fiili Maliyet]]","v":{"v":-100,"d":"-100 ₺"}},{"$f":"BütçeAyrıntıları[[#This Row],[Fiili Maliyet]]","v":{"v":400,"d":"400 ₺"}}]
[null,"Ev Temizleme Hizmeti","Barınma",{"v":200,"d":"200 ₺"},null,{"$f":"BütçeAyrıntıları[[#This Row],[Tahmini Maliyet]]-BütçeAyrıntıları[[#This Row],[Fiili Maliyet]]","v":{"v":200,"d":"200 ₺"}},{"$f":"BütçeAyrıntıları[[#This Row],[Fiili Maliyet]]","v":{"v":0,"d":"0 ₺"}}]
[null,"Tadilat","Barınma",{"v":200,"d":"200 ₺"},{"v":150,"d":"150 ₺"},{"$f":"BütçeAyrıntıları[[#This Row],[Tahmini Maliyet]]-BütçeAyrıntıları[[#This Row],[Fiili Maliyet]]","v":{"v":50,"d":"50 ₺"}},{"$f":"BütçeAyrıntıları[[#This Row],[Fiili Maliyet]]","v":{"v":150,"d":"150 ₺"}}]
[null,"İpotek veya Kira","Barınma",{"v":1700,"d":"1,700 ₺"},{"v":1700,"d":"1,700 ₺"},{"$f":"BütçeAyrıntıları[[#This Row],[Tahmini Maliyet]]-BütçeAyrıntıları[[#This Row],[Fiili Maliyet]]","v":{"v":0,"d":"0 ₺"}},{"$f":"BütçeAyrıntıları[[#This Row],[Fiili Maliyet]]","v":{"v":1700,"d":"1,700 ₺"}}]
[null,"Doğalgaz/benzin","Barınma",null,null,{"$f":"BütçeAyrıntıları[[#This Row],[Tahmini Maliyet]]-BütçeAyrıntıları[[#This Row],[Fiili Maliyet]]","v":{"v":0,"d":"0 ₺"}},{"$f":"BütçeAyrıntıları[[#This Row],[Fiili Maliyet]]","v":{"v":0,"d":"0 ₺"}}]
[null,"Çevrimiçi Hizmet/İnternet Hizmeti","Barınma",{"v":100,"d":"100 ₺"},{"v":100,"d":"100 ₺"},{"$f":"BütçeAyrıntıları[[#This Row],[Tahmini Maliyet]]-BütçeAyrıntıları[[#This Row],[Fiili Maliyet]]","v":{"v":0,"d":"0 ₺"}},{"$f":"BütçeAyrıntıları[[#This Row],[Fiili Maliyet]]","v":{"v":100,"d":"100 ₺"}}]
[null,"Telefon (Cep)","Barınma",{"v":60,"d":"60 ₺"},{"v":60,"d":"60 ₺"},{"$f":"BütçeAyrıntıları[[#This Row],[Tahmini Maliyet]]-BütçeAyrıntıları[[#This Row],[Fiili Maliyet]]","v":{"v":0,"d":"0 ₺"}},{"$f":"BütçeAyrıntıları[[#This Row],[Fiili Maliyet]]","v":{"v":60,"d":"60 ₺"}}]
[null,"Telefon (Ev)","Barınma",{"v":35,"d":"35 ₺"},{"v":39,"d":"39 ₺"},{"$f":"BütçeAyrıntıları[[#This Row],[Tahmini Maliyet]]-BütçeAyrıntıları[[#This Row],[Fiili Maliyet]]","v":{"v":-4,"d":"-4 ₺"}},{"$f":"BütçeAyrıntıları[[#This Row],[Fiili Maliyet]]","v":{"v":39,"d":"39 ₺"}}]
[null,"Diğer Malzemeler","Barınma",{"v":40,"d":"40 ₺"},{"v":55,"d":"55 ₺"},{"$f":"BütçeAyrıntıları[[#This Row],[Tahmini Maliyet]]-BütçeAyrıntıları[[#This Row],[Fiili Maliyet]]","v":{"v":-15,"d":"-15 ₺"}},{"$f":"BütçeAyrıntıları[[#This Row],[Fiili Maliyet]]","v":{"v":55,"d":"55 ₺"}}]
[null,"Atık Temizleme ve Geri Dönüşüm","Barınma",{"v":25,"d":"25 ₺"},{"v":22,"d":"22 ₺"},{"$f":"BütçeAyrıntıları[[#This Row],[Tahmini Maliyet]]-BütçeAyrıntıları[[#This Row],[Fiili Maliyet]]","v":{"v":3,"d":"3 ₺"}},{"$f":"BütçeAyrıntıları[[#This Row],[Fiili Maliyet]]","v":{"v":22,"d":"22 ₺"}}]
[null,"Su ve Kanalizasyon","Barınma",{"v":25,"d":"25 ₺"},{"v":26,"d":"26 ₺"},{"$f":"BütçeAyrıntıları[[#This Row],[Tahmini Maliyet]]-BütçeAyrıntıları[[#This Row],[Fiili Maliyet]]","v":{"v":-1,"d":"-1 ₺"}},{"$f":"BütçeAyrıntıları[[#This Row],[Fiili Maliyet]]","v":{"v":26,"d":"26 ₺"}}]
[null,"Sağlık","Sigorta",{"v":400,"d":"400 ₺"},{"v":400,"d":"400 ₺"},{"$f":"BütçeAyrıntıları[[#This Row],[Tahmini Maliyet]]-BütçeAyrıntıları[[#This Row],[Fiili Maliyet]]","v":{"v":0,"d":"0 ₺"}},{"$f":"BütçeAyrıntıları[[#This Row],[Fiili Maliyet]]","v":{"v":400,"d":"400 ₺"}}]
[null,"Ev","Sigorta",{"v":400,"d":"400 ₺"},{"v":400,"d":"400 ₺"},{"$f":"BütçeAyrıntıları[[#This Row],[Tahmini Maliyet]]-BütçeAyrıntıları[[#This Row],[Fiili Maliyet]]","v":{"v":0,"d":"0 ₺"}},{"$f":"BütçeAyrıntıları[[#This Row],[Fiili Maliyet]]","v":{"v":400,"d":"400 ₺"}}]
[null,"Yaşam","Sigorta",{"v":100,"d":"100 ₺"},{"v":100,"d":"100 ₺"},{"$f":"BütçeAyrıntıları[[#This Row],[Tahmini Maliyet]]-BütçeAyrıntıları[[#This Row],[Fiili Maliyet]]","v":{"v":0,"d":"0 ₺"}},{"$f":"BütçeAyrıntıları[[#This Row],[Fiili Maliyet]]","v":{"v":100,"d":"100 ₺"}}]
[null,"Kredi Kartı 1","Krediler",{"v":200,"d":"200 ₺"},{"v":200,"d":"200 ₺"},{"$f":"BütçeAyrıntıları[[#This Row],[Tahmini Maliyet]]-BütçeAyrıntıları[[#This Row],[Fiili Maliyet]]","v":{"v":0,"d":"0 ₺"}},{"$f":"BütçeAyrıntıları[[#This Row],[Fiili Maliyet]]","v":{"v":200,"d":"200 ₺"}}]
[null,"Kredi Kartı 2","Krediler",null,null,{"$f":"BütçeAyrıntıları[[#This Row],[Tahmini Maliyet]]-BütçeAyrıntıları[[#This Row],[Fiili Maliyet]]","v":{"v":0,"d":"0 ₺"}},{"$f":"BütçeAyrıntıları[[#This Row],[Fiili Maliyet]]","v":{"v":0,"d":"0 ₺"}}]
[null,"Kredi Kartı 3","Krediler",null,null,{"$f":"BütçeAyrıntıları[[#This Row],[Tahmini Maliyet]]-BütçeAyrıntıları[[#This Row],[Fiili Maliyet]]","v":{"v":0,"d":"0 ₺"}},{"$f":"BütçeAyrıntıları[[#This Row],[Fiili Maliyet]]","v":{"v":0,"d":"0 ₺"}}]
[null,"Kişisel","Krediler",null,null,{"$f":"BütçeAyrıntıları[[#This Row],[Tahmini Maliyet]]-BütçeAyrıntıları[[#This Row],[Fiili Maliyet]]","v":{"v":0,"d":"0 ₺"}},{"$f":"BütçeAyrıntıları[[#This Row],[Fiili Maliyet]]","v":{"v":0,"d":"0 ₺"}}]
[null,"Öğrenci","Krediler",null,null,{"$f":"BütçeAyrıntıları[[#This Row],[Tahmini Maliyet]]-BütçeAyrıntıları[[#This Row],[Fiili Maliyet]]","v":{"v":0,"d":"0 ₺"}},{"$f":"BütçeAyrıntıları[[#This Row],[Fiili Maliyet]]","v":{"v":0,"d":"0 ₺"}}]
[null,"Giyim","Kişisel Bakım",{"v":150,"d":"150 ₺"},{"v":140,"d":"140 ₺"},{"$f":"BütçeAyrıntıları[[#This Row],[Tahmini Maliyet]]-BütçeAyrıntıları[[#This Row],[Fiili Maliyet]]","v":{"v":10,"d":"10 ₺"}},{"$f":"BütçeAyrıntıları[[#This Row],[Fiili Maliyet]]","v":{"v":140,"d":"140 ₺"}}]
[null,"Kuru Temizleme","Kişisel Bakım",null,null,{"$f":"BütçeAyrıntıları[[#This Row],[Tahmini Maliyet]]-BütçeAyrıntıları[[#This Row],[Fiili Maliyet]]","v":{"v":0,"d":"0 ₺"}},{"$f":"BütçeAyrıntıları[[#This Row],[Fiili Maliyet]]","v":{"v":0,"d":"0 ₺"}}]
[null,"Kuaför","Kişisel Bakım",null,null,{"$f":"BütçeAyrıntıları[[#This Row],[Tahmini Maliyet]]-BütçeAyrıntıları[[#This Row],[Fiili Maliyet]]","v":{"v":0,"d":"0 ₺"}},{"$f":"BütçeAyrıntıları[[#This Row],[Fiili Maliyet]]","v":{"v":0,"d":"0 ₺"}}]
[null,"Sağlık Kulübü","Kişisel Bakım",null,null,{"$f":"BütçeAyrıntıları[[#This Row],[Tahmini Maliyet]]-BütçeAyrıntıları[[#This Row],[Fiili Maliyet]]","v":{"v":0,"d":"0 ₺"}},{"$f":"BütçeAyrıntıları[[#This Row],[Fiili Maliyet]]","v":{"v":0,"d":"0 ₺"}}]
[null,"Medikal","Kişisel Bakım",null,null,{"$f":"BütçeAyrıntıları[[#This Row],[Tahmini Maliyet]]-BütçeAyrıntıları[[#This Row],[Fiili Maliyet]]","v":{"v":0,"d":"0 ₺"}},{"$f":"BütçeAyrıntıları[[#This Row],[Fiili Maliyet]]","v":{"v":0,"d":"0 ₺"}}]
[null,"Yiyecek","Evcil Hayvanlar",{"v":150,"d":"150 ₺"},{"v":75,"d":"75 ₺"},{"$f":"BütçeAyrıntıları[[#This Row],[Tahmini Maliyet]]-BütçeAyrıntıları[[#This Row],[Fiili Maliyet]]","v":{"v":75,"d":"75 ₺"}},{"$f":"BütçeAyrıntıları[[#This Row],[Fiili Maliyet]]","v":{"v":75,"d":"75 ₺"}}]
[null,"Bakım","Evcil Hayvanlar",{"v":20,"d":"20 ₺"},{"v":25,"d":"25 ₺"},{"$f":"BütçeAyrıntıları[[#This Row],[Tahmini Maliyet]]-BütçeAyrıntıları[[#This Row],[Fiili Maliyet]]","v":{"v":-5,"d":"-5 ₺"}},{"$f":"BütçeAyrıntıları[[#This Row],[Fiili Maliyet]]","v":{"v":25,"d":"25 ₺"}}]
[null,"Sağlık","Evcil Hayvanlar",null,null,{"$f":"BütçeAyrıntıları[[#This Row],[Tahmini Maliyet]]-BütçeAyrıntıları[[#This Row],[Fiili Maliyet]]","v":{"v":0,"d":"0 ₺"}},{"$f":"BütçeAyrıntıları[[#This Row],[Fiili Maliyet]]","v":{"v":0,"d":"0 ₺"}}]
[null,"Oyuncak","Evcil Hayvanlar",null,null,{"$f":"BütçeAyrıntıları[[#This Row],[Tahmini Maliyet]]-BütçeAyrıntıları[[#This Row],[Fiili Maliyet]]","v":{"v":0,"d":"0 ₺"}},{"$f":"BütçeAyrıntıları[[#This Row],[Fiili Maliyet]]","v":{"v":0,"d":"0 ₺"}}]
[null,"Yatırım hesabı","Birikimler veya Yatırımlar",{"v":200,"d":"200 ₺"},{"v":200,"d":"200 ₺"},{"$f":"BütçeAyrıntıları[[#This Row],[Tahmini Maliyet]]-BütçeAyrıntıları[[#This Row],[Fiili Maliyet]]","v":{"v":0,"d":"0 ₺"}},{"$f":"BütçeAyrıntıları[[#This Row],[Fiili Maliyet]]","v":{"v":200,"d":"200 ₺"}}]
[null,"Emeklilik hesabı","Birikimler veya Yatırımlar",null,null,{"$f":"BütçeAyrıntıları[[#This Row],[Tahmini Maliyet]]-BütçeAyrıntıları[[#This Row],[Fiili Maliyet]]","v":{"v":0,"d":"0 ₺"}},{"$f":"BütçeAyrıntıları[[#This Row],[Fiili Maliyet]]","v":{"v":0,"d":"0 ₺"}}]
[null,"Federal","Vergiler",{"v":300,"d":"300 ₺"},{"v":300,"d":"300 ₺"},{"$f":"BütçeAyrıntıları[[#This Row],[Tahmini Maliyet]]-BütçeAyrıntıları[[#This Row],[Fiili Maliyet]]","v":{"v":0,"d":"0 ₺"}},{"$f":"BütçeAyrıntıları[[#This Row],[Fiili Maliyet]]","v":{"v":300,"d":"300 ₺"}}]
[null,"Yerel","Vergiler",null,null,{"$f":"BütçeAyrıntıları[[#This Row],[Tahmini Maliyet]]-BütçeAyrıntıları[[#This Row],[Fiili Maliyet]]","v":{"v":0,"d":"0 ₺"}},{"$f":"BütçeAyrıntıları[[#This Row],[Fiili Maliyet]]","v":{"v":0,"d":"0 ₺"}}]
[null,"Devlet","Vergiler",null,null,{"$f":"BütçeAyrıntıları[[#This Row],[Tahmini Maliyet]]-BütçeAyrıntıları[[#This Row],[Fiili Maliyet]]","v":{"v":0,"d":"0 ₺"}},{"$f":"BütçeAyrıntıları[[#This Row],[Fiili Maliyet]]","v":{"v":0,"d":"0 ₺"}}]
[null,"Otobüs/Taksi ücretleri","Ulaşım",{"v":100,"d":"100 ₺"},{"v":150,"d":"150 ₺"},{"$f":"BütçeAyrıntıları[[#This Row],[Tahmini Maliyet]]-BütçeAyrıntıları[[#This Row],[Fiili Maliyet]]","v":{"v":-50,"d":"-50 ₺"}},{"$f":"BütçeAyrıntıları[[#This Row],[Fiili Maliyet]]","v":{"v":150,"d":"150 ₺"}}]
[null,"Yakıt","Ulaşım",{"v":450,"d":"450 ₺"},{"v":400,"d":"400 ₺"},{"$f":"BütçeAyrıntıları[[#This Row],[Tahmini Maliyet]]-BütçeAyrıntıları[[#This Row],[Fiili Maliyet]]","v":{"v":50,"d":"50 ₺"}},{"$f":"BütçeAyrıntıları[[#This Row],[Fiili Maliyet]]","v":{"v":400,"d":"400 ₺"}}]
[null,"Sigorta","Ulaşım",{"v":300,"d":"300 ₺"},{"v":300,"d":"300 ₺"},{"$f":"BütçeAyrıntıları[[#This Row],[Tahmini Maliyet]]-BütçeAyrıntıları[[#This Row],[Fiili Maliyet]]","v":{"v":0,"d":"0 ₺"}},{"$f":"BütçeAyrıntıları[[#This Row],[Fiili Maliyet]]","v":{"v":300,"d":"300 ₺"}}]
[null,"Ruhsat alma ","Ulaşım",{"v":25,"d":"25 ₺"},{"v":25,"d":"25 ₺"},{"$f":"BütçeAyrıntıları[[#This Row],[Tahmini Maliyet]]-BütçeAyrıntıları[[#This Row],[Fiili Maliyet]]","v":{"v":0,"d":"0 ₺"}},{"$f":"BütçeAyrıntıları[[#This Row],[Fiili Maliyet]]","v":{"v":25,"d":"25 ₺"}}]
[null,"Bakım","Ulaşım",{"v":100,"d":"100 ₺"},{"v":50,"d":"50 ₺"},{"$f":"BütçeAyrıntıları[[#This Row],[Tahmini Maliyet]]-BütçeAyrıntıları[[#This Row],[Fiili Maliyet]]","v":{"v":50,"d":"50 ₺"}},{"$f":"BütçeAyrıntıları[[#This Row],[Fiili Maliyet]]","v":{"v":50,"d":"50 ₺"}}]
[null,"Park ücretleri","Ulaşım",null,null,{"$f":"BütçeAyrıntıları[[#This Row],[Tahmini Maliyet]]-BütçeAyrıntıları[[#This Row],[Fiili Maliyet]]","v":{"v":0,"d":"0 ₺"}},{"$f":"BütçeAyrıntıları[[#This Row],[Fiili Maliyet]]","v":{"v":0,"d":"0 ₺"}}]
[null,"Araç ödemesi","Ulaşım",{"v":450,"d":"450 ₺"},{"v":450,"d":"450 ₺"},{"$f":"BütçeAyrıntıları[[#This Row],[Tahmini Maliyet]]-BütçeAyrıntıları[[#This Row],[Fiili Maliyet]]","v":{"v":0,"d":"0 ₺"}},{"$f":"BütçeAyrıntıları[[#This Row],[Fiili Maliyet]]","v":{"v":450,"d":"450 ₺"}}]
[null,"Toplam",null,{"$f":"SUBTOTAL(109,BütçeAyrıntıları[Tahmini Maliyet])","v":{"v":7915,"d":"7,915 ₺"}},{"$f":"SUBTOTAL(109,BütçeAyrıntıları[Fiili Maliyet])","v":{"v":7860,"d":"7,860 ₺"}},{"$f":"SUBTOTAL(109,BütçeAyrıntıları[Fark])","v":{"v":55,"d":"55 ₺"}}]

{"sheet":"Ek Veri","index":2,"n_rows":15,"n_cols":5,"rows_kept":15}
[null,"Bütçeye Genel Bakış grafiği için PivotTable",null,null,"Bütçe Ayrıntıları Kategorisi için Arama Listesi"]
[null,"Kategori","Maliyet",null,"Bütçe Kategorisi Arama"]
[null,"Barınma",2702,null,"Çocuklar"]
[null,"Birikimler veya Yatırımlar",200,null,"Eğlence"]
[null,"Çocuklar",140,null,"Yiyecek"]
[null,"Eğlence",358,null,"Hediyeler ve Bağışlar"]
[null,"Evcil Hayvanlar",100,null,"Barınma"]
[null,"Hediyeler ve Bağışlar",125,null,"Sigorta"]
[null,"Kişisel Bakım",140,null,"Krediler"]
[null,"Krediler",200,null,"Kişisel Bakım"]
[null,"Sigorta",900,null,"Evcil Hayvanlar"]
[null,"Ulaşım",1375,null,"Birikimler veya Yatırımlar"]
[null,"Vergiler",300,null,"Vergiler"]
[null,"Yiyecek",1320,null,"Ulaşım"]
[null,"Genel Toplam",7860]